bitfinex/quotes_SOLUSD_20250425
["timestamp","ask_amount","ask_price","bid_price","bid_amount"]
[1745585345404,39.74,154.25,154.2,6.48497624]
[1745585345712,39.74,154.25,154.19,6.48540464]
[1745585345888,0.14216157,154.24,154.18,6.48585408]
[1745585346278,0.14216157,154.24,154.16,1.29670466]
[1745585346279,26.0,154.23,154.16,6.48670719]
[1745585346702,0.14216157,154.24,154.15,13.17357833]
[1745585346908,18.79181043,154.24,154.15,13.17357833]
[1745585347086,0.14216157,154.24,154.15,6.6865]
[1745585347697,0.14216157,154.24,154.18,6.48586123]
[1745585349223,0.14216157,154.24,154.15,6.6865]
[1745585349224,18.79181043,154.24,154.15,13.17353401]
[1745585349391,18.79181043,154.24,154.15,6.6865]
[1745585349720,18.79181043,154.24,154.15,13.17337847]
[1745585350022,18.79181043,154.24,154.16,6.48675029]
[1745585351116,26.0,154.23,154.18,6.48565715]
[1745585352117,26.0,154.23,154.15,6.6865]
[1745585352118,26.14216157,154.23,154.17,6.48621808]
[1745585353996,26.14216157,154.23,154.15,6.6865]
[1745585354197,44.79181043,154.23,154.15,13.17354339]
[1745585354521,0.14216157,154.18,154.15,0.03]
[1745585361938,18.79181043,154.18,154.15,0.03]
[1745585364813,25.27778329,154.18,154.15,0.03]
[1745585365219,44.79181043,154.16,154.15,0.03]
[1745585367041,18.64964886,154.18,154.15,0.03]
[1745585367216,0.14216157,154.17,154.15,0.03]
[1745585367625,44.79181043,154.16,154.15,0.03]
[1745585368418,44.71071971,154.16,154.08,0.03]
[1745585368737,18.79181043,154.15,154.08,0.03]
[1745585369034,0.14216157,154.15,154.08,0.03]
[1745585370637,0.14216157,154.16,154.08,0.03]
[1745585372323,18.79181043,154.13,154.08,0.03]
[1745585372524,0.14216157,154.11,154.08,0.03]
[1745585373845,13.76,154.12,154.08,0.03]
[1745585374213,0.14216157,154.11,154.08,0.03]
[1745585376037,18.79181043,154.11,154.08,0.03]
[1745585377748,0.14216157,154.11,154.08,0.03]
[1745585379725,18.79181043,154.11,154.08,0.03]
[1745585380120,4.79307685,154.1,154.08,0.03]
[1745585380353,0.14216157,154.09,154.08,0.03]
[1745585381457,4.93523842,154.09,154.08,0.03]
[1745585382270,23.58488728,154.09,154.08,0.03]
[1745585385360,23.44272571,154.09,154.08,0.03]
[1745585385859,23.58488728,154.09,154.08,0.03]
[1745585389737,30.93523842,154.09,154.08,0.03]
[1745585389960,4.79307685,154.09,154.08,0.03]
[1745585391564,26.0,154.14,154.08,0.03]
[1745585391751,13.74,154.15,154.08,0.03]
[1745585393455,13.74,154.15,154.09,6.2623]
[1745585393975,202.48,154.18,154.09,6.2623]
[1745585394177,96.54,154.19,154.1,1.5159]
[1745585394350,39.74,154.19,154.1,1.5159]
[1745585395072,39.74,154.19,154.11,22.71105054]
[1745585395375,13.74,154.19,154.11,22.71105054]
[1745585397859,10.38994909,154.2,154.12,1.2972031]
[1745585398060,0.063,154.22,154.13,8.1312]
[1745585398272,0.063,154.22,154.14,1.29699351]
[1745585398787,0.063,154.22,154.15,18.64964886]
[1745585398993,0.063,154.22,154.13,21.8712]
[1745585399165,0.063,154.22,154.14,22.70663032]
[1745585399475,0.063,154.22,154.14,6.48760866]
[1745585400180,18.79181043,154.21,154.13,1.6522]
[1745585400488,18.79181043,154.21,154.1,6.48929266]
[1745585401689,0.14216157,154.17,154.1,6.48929266]
[1745585402384,0.14216157,154.15,154.1,6.48929266]
[1745585402589,0.14216157,154.15,154.09,14.49456886]
[1745585404386,39.74,154.19,154.09,30.71885336]
[1745585404599,13.74,154.19,154.09,30.71885336]
[1745585404764,13.74,154.19,154.1,19.94688892]
[1745585404967,0.063,154.22,154.12,1.6269]
[1745585405167,26.063,154.22,154.13,6.48802958]
[1745585405684,26.063,154.22,154.13,22.70810354]
[1745585405868,0.063,154.22,154.13,22.70810354]
[1745585406204,26.20516157,154.22,154.13,22.70810354]
[1745585406379,0.063,154.22,154.14,26.17729604]
[1745585406561,0.063,154.22,154.14,7.52764718]
[1745585406762,0.063,154.22,154.14,6.2306]
[1745585407208,0.063,154.22,154.15,6.4871878]
[1745585408074,0.20516157,154.22,154.15,6.4871878]
[1745585409278,0.20516157,154.22,154.15,6.40609707]
[1745585409906,0.20516157,154.22,154.14,6.2306]
[1745585410377,0.20516157,154.22,154.14,12.71820062]
[1745585410577,0.20516157,154.22,154.14,6.2306]
[1745585411487,18.85481043,154.22,154.12,8.11527511]
[1745585411672,0.20516157,154.22,154.12,8.11527511]
[1745585411877,18.85481043,154.22,154.12,8.11527511]
[1745585412406,25.33906617,154.22,154.1,12.50871513]
[1745585412606,18.85481043,154.22,154.1,12.50871513]
[1745585412899,0.20516157,154.22,154.1,12.50871513]
[1745585413493,26.0,154.2,154.1,28.73194679]
[1745585413702,0.14216157,154.19,154.1,28.73194679]
[1745585415908,0.14216157,154.19,154.1,12.50871513]
[1745585418231,0.14216157,154.19,154.1,28.73194679]
[1745585421230,0.14216157,154.19,154.1,12.50871513]
[1745585421837,0.14216157,154.19,154.09,6.48959599]
[1745585421838,18.79181043,154.19,154.09,6.48959599]
[1745585424023,0.14216157,154.17,154.09,6.48959599]
[1745585427111,26.0,154.16,154.09,6.48959599]
[1745585427316,0.14216157,154.15,154.09,6.48959599]
[1745585428014,0.14216157,154.15,154.08,8.09819782]
[1745585431247,30.14216157,154.15,154.08,8.09819782]
[1745585434722,30.0,154.15,154.08,24.3235353]
[1745585435038,30.0,154.15,154.09,18.64964886]
[1745585435214,30.0,154.15,154.1,22.71252432]
[1745585435816,30.0,154.15,154.12,6.5412]
[1745585436022,0.063,154.22,154.13,1.5113]
[1745585436807,26.0,154.21,154.1,6.48929266]
[1745585437010,0.14216157,154.19,154.1,6.48929266]
[1745585438041,1.6645,154.2,154.1,6.48929266]
[1745585438042,0.14216157,154.17,154.1,6.48929266]
[1745585438363,26.14216157,154.17,154.09,8.00087004]
[1745585439043,0.14216157,154.15,154.09,8.00087004]
[1745585443852,26.0,154.17,154.09,8.00087004]
[1745585444646,4.82314961,154.16,154.09,8.00087004]
[1745585445465,0.14216157,154.16,154.09,8.00087004]
[1745585450461,4.82579831,154.15,154.09,8.00087004]
[1745585451542,0.14216157,154.16,154.09,8.00087004]
[1745585453066,4.82796821,154.15,154.09,8.00087004]
[1745585454444,0.14216157,154.16,154.09,8.00087004]
[1745585456567,4.832763,154.15,154.1,18.64964886]
[1745585456865,4.832763,154.15,154.11,15.01710784]
[1745585457767,4.832763,154.15,154.12,6.48845055]
[1745585457940,4.832763,154.21,154.13,1.29710995]
[1745585458654,4.832763,154.2,154.13,1.29710995]
[1745585459562,4.832763,154.2,154.12,6.48845055]
[1745585459767,4.832763,154.19,154.12,6.48845055]
[1745585460546,26.20516157,154.22,154.12,6.48845055]
[1745585460772,26.0,154.21,154.12,6.48845055]
[1745585461144,26.0,154.21,154.1,6.488929]
[1745585461145,26.14216157,154.2,154.1,6.488929]
[1745585461339,6.5909,154.19,154.1,7.78642465]
[1745585461651,4.83204173,154.18,154.1,7.78642465]
[1745585462054,4.83204173,154.18,154.1,24.00965631]
[1745585462865,0.14216157,154.19,154.1,24.00965631]
[1745585464066,4.83179112,154.18,154.1,24.00965631]
[1745585464973,0.063,154.22,154.11,18.64964886]
[1745585465178,0.20516157,154.22,154.12,1.29710535]
[1745585465770,0.20516157,154.22,154.13,6.48802958]
[1745585466077,4.83219499,154.21,154.13,6.48802958]
[1745585466777,0.14216157,154.19,154.13,6.48802958]
[1745585467865,26.063,154.22,154.14,19.94676543]
[1745585468084,4.82976062,154.21,154.14,19.94676543]
[1745585468251,4.82976062,154.21,154.13,6.48802958]
[1745585468455,0.14216157,154.2,154.13,6.48802958]
[1745585469273,0.14216157,154.21,154.13,6.48802958]
[1745585470560,0.14216157,154.21,154.12,22.70953188]
[1745585470887,0.14216157,154.21,154.13,1.29712144]
[1745585472481,0.14216157,154.21,154.14,6.48760866]
[1745585474295,0.20516157,154.22,154.13,7.78496747]
[1745585474455,0.20516157,154.22,154.11,6.48887158]
[1745585474456,18.85481043,154.22,154.11,6.48887158]
[1745585474656,1.5198,154.21,154.11,6.48887158]
[1745585474889,23.60709656,154.2,154.1,6.48912316]
[1745585475099,0.14216157,154.18,154.1,6.48912316]
[1745585476375,0.14216157,154.16,154.09,6.4897138]
[1745585476681,4.81618731,154.17,154.1,18.64964886]
[1745585476885,4.81618731,154.17,154.11,2.82043537]
[1745585477576,0.14216157,154.19,154.11,2.82043537]
[1745585478581,0.14216157,154.19,154.12,6.48845055]
[1745585479786,0.14216157,154.19,154.1,6.48929266]
[1745585479987,0.14216157,154.17,154.1,6.48929266]
[1745585480685,0.14216157,154.17,154.09,6.4897138]
[1745585482198,0.14216157,154.15,154.09,6.4897138]
[1745585483104,0.14216157,154.13,154.08,0.03]
[1745585485778,27.6594,154.14,154.08,0.03]
[1745585486600,0.14216157,154.13,154.08,0.03]
[1745585489208,26.0,154.12,154.08,0.03]
[1745585489591,0.14216157,154.11,154.08,0.03]
[1745585498708,8.24776157,154.09,154.08,0.03]
[1745585498894,31.70255177,154.09,154.08,0.03]
[1745585501012,26.14216157,154.07,154.06,0.03]
[1745585501208,23.59695177,154.07,154.06,0.03]
[1745585501788,49.59695177,154.07,154.06,0.03]
[1745585502009,23.59695177,154.07,154.06,0.03]
[1745585502924,18.79181043,154.07,154.06,0.03]
[1745585504414,8.1056,154.09,154.06,0.03]
[1745585504607,26.14216157,154.07,154.06,0.03]
[1745585507628,1.5291,154.09,154.06,0.03]
[1745585507834,26.0,154.07,154.06,0.03]
[1745585507997,13.7,154.1,154.06,0.03]
[1745585508619,0.14216157,154.09,154.06,0.03]
[1745585511516,13.7,154.1,154.06,0.03]
[1745585511924,26.14216157,154.09,154.06,0.03]
[1745585515225,26.14216157,154.07,154.06,0.03]
[1745585517034,26.0,154.07,154.06,0.03]
[1745585518233,26.14216157,154.07,154.06,0.03]
[1745585519414,26.0,154.07,154.06,0.03]
[1745585519618,26.14216157,154.07,154.06,0.03]
[1745585525648,50.79901043,154.07,154.06,0.03]
[1745585526473,55.59252427,154.07,154.06,0.03]
[1745585526636,30.79351384,154.07,154.06,0.03]
[1745585527153,30.93567541,154.07,154.06,0.03]
[1745585528673,4.93567541,154.07,154.06,0.03]
[1745585532268,25.15251043,154.06,154.05,79.913025]
[1745585532667,27.5501403,154.06,154.05,79.913025]
[1745585532864,32.34365414,154.06,154.05,79.913025]
[1745585534452,7.33330528,154.06,154.05,79.913025]
[1745585537243,33.19114371,154.06,154.05,79.913025]
[1745585537448,46.89114371,154.06,154.05,79.913025]
[1745585537949,20.89114371,154.06,154.05,79.913025]
[1745585538149,46.17393168,154.06,154.05,79.913025]
[1745585538377,39.68295414,154.06,154.05,79.913025]
[1745585542349,39.68295414,154.06,154.05,57.63027887]
[1745585542350,46.17393168,154.06,154.05,57.63027887]
[1745585542664,46.17393168,154.06,154.05,27.25024001]
[1745585543060,46.27584886,154.02,153.99,0.03]
[1745585543393,0.14216157,153.95,153.9,0.9001985]
[1745585545867,39.7,153.96,153.9,7.39791246]
[1745585546453,0.14216157,153.95,153.9,7.39791246]
[1745585546955,39.7,153.96,153.9,7.39791246]
[1745585547285,82.8,154.01,153.91,1.5847]
[1745585547286,13.7,154.01,153.91,1.5847]
[1745585547853,13.7,154.01,153.92,6.0712]
[1745585548490,13.7,154.01,153.93,22.73760799]
[1745585548892,202.6,154.04,153.94,1.29869262]
[1745585549180,2.39540314,154.03,153.94,27.29869262]
[1745585549487,2.39540314,154.03,153.96,26.0]
[1745585549780,2.39540314,154.03,153.99,6.0712]
[1745585549974,29.7129291,154.08,153.99,7.36952407]
[1745585550556,29.7129291,154.08,154.0,22.72727272]
[1745585551279,0.14216157,154.07,154.0,22.72727272]
[1745585551461,29.7129291,154.08,154.0,22.72727272]
[1745585551662,0.14216157,154.07,154.0,22.72727272]
[1745585551963,29.7129291,154.08,154.0,22.72727272]
[1745585552162,0.14216157,154.07,154.0,22.72727272]
[1745585553792,0.14216157,154.07,154.0,6.49350649]
[1745585553981,0.14216157,154.07,153.99,12.56500891]
[1745585554177,2.39453865,154.06,153.99,12.56500891]
[1745585554681,2.39453865,154.06,153.99,6.49380891]
[1745585555160,2.39453865,154.06,153.96,6.49519355]
[1745585555161,0.14216157,154.05,153.96,6.49519355]
[1745585555356,0.14216157,154.05,153.96,24.03186173]
[1745585555561,55.7129291,154.08,153.96,24.03186173]
[1745585555562,0.14216157,154.07,153.96,56.50782951]
[1745585555762,29.7129291,154.08,153.97,18.64964886]
[1745585555980,0.14216157,154.07,153.98,1.29824644]
[1745585557810,29.7129291,154.08,153.99,22.72874861]
[1745585557994,29.7129291,154.08,154.0,1.29817758]
[1745585559688,29.7129291,154.08,154.01,24.26409702]
[1745585559884,26.0,154.11,154.02,19.94765236]
[1745585560504,26.0,154.12,154.02,19.94765236]
[1745585560671,26.0,154.12,154.03,13.7]
[1745585560871,26.0,154.12,154.04,1.29778226]
[1745585561102,0.063,154.13,154.06,27.1407]
[1745585561274,0.063,154.13,154.07,1.29735702]
[1745585561472,0.063,154.13,154.06,22.72827383]
[1745585561869,0.063,154.13,154.07,6.49055624]
[1745585562072,0.063,154.13,154.07,20.19055624]
[1745585564367,0.063,154.13,154.06,7.7307]
[1745585564570,0.14216157,154.12,154.03,233.62329558]
[1745585564768,26.0,154.11,154.02,6.5185]
[1745585565578,0.14216157,154.09,154.02,6.5185]
[1745585566205,0.14216157,154.09,154.02,13.01089954]
[1745585567407,0.14216157,154.09,154.02,6.5185]
[1745585567594,26.0,154.11,154.02,13.01108127]
[1745585567781,0.14216157,154.1,154.02,13.01108127]
[1745585568522,26.0,154.11,154.02,13.01108127]
[1745585568523,0.14216157,154.11,154.02,13.01108127]
[1745585568704,0.14216157,154.11,154.02,14.3089826]
[1745585569680,13.68,154.12,154.02,14.3089826]
[1745585569882,39.68,154.12,154.02,14.3089826]
[1745585570084,0.14216157,154.11,154.02,25.18013603]
[1745585570396,26.0,154.09,154.02,6.5185]
[1745585570788,26.14216157,154.11,154.01,6.49297131]
[1745585571780,26.0,154.09,153.99,23.1002242]
[1745585571997,0.14216157,154.08,153.99,23.1002242]
[1745585572303,0.14216157,154.08,153.99,21.80222244]
[1745585579692,18.79181043,154.06,153.95,17.50797669]
[1745585579916,0.14216157,154.04,153.95,7.7682]
[1745585580487,18.79181043,154.04,153.92,0.03]
[1745585580717,0.14216157,154.02,153.92,0.03]
[1745585581097,18.79181043,154.02,153.92,0.03]
[1745585581295,1.73616157,154.0,153.92,0.03]
[1745585581523,0.14216157,153.98,153.92,0.03]
[1745585582729,26.0,153.96,153.92,0.03]
[1745585583035,26.0,153.96,153.9,6.84461448]
[1745585583326,26.0,153.96,153.9,0.3471985]
[1745585583491,26.0,153.96,153.9,6.84485969]
[1745585585403,26.0,153.96,153.9,0.3471985]
[1745585585933,0.14216157,153.95,153.9,0.3471985]
[1745585588136,13.7,153.99,153.9,6.84481609]
[1745585588622,0.14216157,153.98,153.9,6.84481609]
[1745585588934,18.79181043,153.98,153.9,0.3471985]
[1745585589823,3.46777261,153.98,153.9,0.3471985]
[1745585589998,3.46777261,153.98,153.9,6.84478892]
[1745585590202,22.11742147,153.98,153.9,6.84478892]
[1745585590402,13.7,153.99,153.9,6.84478892]
[1745585590938,26.0,153.96,153.9,6.84478892]
[1745585591138,26.14216157,153.95,153.9,0.3471985]
[1745585591616,44.79181043,153.95,153.9,0.3471985]
[1745585592222,26.14216157,153.95,153.9,0.3471985]
[1745585592524,26.0,153.94,153.9,0.3471985]
[1745585593337,19.79181043,153.91,153.8,0.0473]
[1745585593552,26.0,153.84,153.8,0.0473]
[1745585593744,0.14216157,153.83,153.8,0.0473]
[1745585593926,18.64964886,153.88,153.8,0.0473]
[1745585594121,0.14216157,153.9,153.8,6.54916669]
[1745585594422,7.675,153.92,153.8,7.84917329]
[1745585594637,13.7,153.9,153.8,6.54916669]
[1745585594853,0.14216157,153.89,153.8,0.0473]
[1745585595247,18.79181043,153.89,153.8,0.0473]
[1745585595448,25.28997158,153.89,153.8,0.0473]
[1745585595643,18.79181043,153.89,153.8,0.0473]
[1745585596161,25.28996418,153.89,153.8,0.0473]
[1745585596750,18.79181043,153.87,153.8,0.0473]
[1745585597445,0.14216157,153.83,153.8,0.0473]
[1745585597767,26.14216157,153.81,153.8,0.0473]
[1745585598667,44.79181043,153.81,153.8,0.0473]
[1745585599250,53.02091043,153.81,153.8,0.0473]
[1745585599445,53.02091043,153.81,153.74,0.03]
[1745585599446,0.14216157,153.76,153.74,0.03]
[1745585599952,8.2291,153.81,153.74,0.03]
[1745585600161,0.14216157,153.77,153.74,0.03]
[1745585600863,26.0,153.8,153.74,0.03]
[1745585601061,0.14216157,153.79,153.74,0.03]
[1745585603174,0.14216157,153.8,153.74,0.03]
[1745585603461,18.79181043,153.8,153.74,0.03]
[1745585603775,0.14216157,153.8,153.74,0.03]
[1745585603981,18.79181043,153.8,153.74,0.03]
[1745585604138,18.79181043,153.78,153.74,0.03]
[1745585604338,18.79181043,153.76,153.59,0.9001985]
[1745585604536,0.14216157,153.73,153.59,0.9001985]
[1745585604736,26.0,153.67,153.59,0.9001985]
[1745585604949,0.14216157,153.66,153.59,0.9001985]
[1745585605234,26.0,153.65,153.59,0.9001985]
[1745585605454,0.14216157,153.62,153.59,0.9001985]
[1745585605645,26.0,153.6,153.59,0.9001985]
[1745585606235,26.14216157,153.6,153.59,0.9001985]
[1745585606435,0.14216157,153.6,153.59,0.9001985]
[1745585607168,26.14216157,153.6,153.59,0.9001985]
[1745585607958,18.79181043,153.6,153.59,0.9001985]
[1745585608156,18.79181043,153.6,153.59,0.7580985]
[1745585608676,0.14216157,153.6,153.59,0.7580985]
[1745585609268,26.14216157,153.6,153.59,0.7580985]
[1745585609632,39.86216157,153.6,153.59,0.7580985]
[1745585610342,58.51181043,153.6,153.59,0.7580985]
[1745585614170,65.15861043,153.6,153.59,0.7580985]
[1745585614637,32.36964886,153.6,153.59,0.7580985]
[1745585615043,33.81181043,153.6,153.59,0.7580985]
[1745585616471,15.02,153.6,153.59,0.7580985]
[1745585616679,82.8,153.63,153.59,0.7580985]
[1745585616968,44.79181043,153.6,153.59,0.7580985]
[1745585617188,44.79181043,153.6,153.59,0.31629544]
[1745585617357,46.36171043,153.6,153.59,0.31629544]
[1745585618760,46.36171043,153.6,153.59,0.17419544]
[1745585619967,44.79181043,153.6,153.59,0.17419544]
[1745585620290,18.64964886,153.6,153.59,0.17419544]
[1745585620595,18.79181043,153.6,153.59,0.17419544]
[1745585621161,18.79181043,153.59,153.52,0.03]
[1745585621977,0.14216157,153.59,153.52,0.03]
[1745585622179,18.64964886,153.61,153.52,0.03]
[1745585622482,18.64964886,153.61,153.5,7.85937086]
[1745585623177,0.14216157,153.6,153.5,24.14601581]
[1745585623494,26.0,153.58,153.5,24.14601581]
[1745585623965,82.8,153.63,153.51,1.30245715]
[1745585624170,15.02,153.62,153.52,8.127]
[1745585625004,26.0,153.59,153.52,8.127]
[1745585625485,26.0,153.59,153.53,6.513385]
[1745585625800,0.14216157,153.61,153.53,6.513385]
[1745585626104,26.0,153.59,153.53,6.513385]
[1745585627974,15.02,153.62,153.53,6.513385]
[1745585628177,18.79181043,153.61,153.52,14.64066394]
[1745585628387,0.14216157,153.61,153.52,14.64066394]
[1745585629002,18.79181043,153.61,153.52,14.64066394]
[1745585631093,18.79181043,153.61,153.52,8.127]
[1745585631395,20.29611043,153.61,153.5,1.344761]
[1745585631569,0.14216157,153.57,153.5,7.85934568]
[1745585631769,15.02,153.56,153.5,7.85934568]
[1745585635408,15.02,153.56,153.5,7.85941822]
[1745585635586,15.02,153.56,153.5,1.344761]
[1745585636622,14.93856389,153.56,153.5,7.85935802]
[1745585637082,0.14216157,153.55,153.5,1.344761]
[1745585638388,14.93856389,153.56,153.5,7.8593861]
[1745585638909,14.93856389,153.56,153.5,1.344761]
[1745585639120,0.14216157,153.55,153.5,1.344761]
[1745585639602,0.14216157,153.52,153.5,1.344761]
[1745585639997,26.0,153.53,153.5,1.344761]
[1745585640802,14.93856389,153.56,153.5,1.344761]
[1745585641005,26.0,153.55,153.5,1.344761]
[1745585642728,0.14216157,153.54,153.5,1.344761]
[1745585642912,1.77586157,153.54,153.5,1.344761]
[1745585643097,0.14216157,153.52,153.5,1.344761]
[1745585643293,6.4301,153.5,153.43,0.03]
[1745585643513,1.6337,153.48,153.43,0.03]
[1745585644211,18.79181043,153.46,153.43,0.03]
[1745585644517,18.79181043,153.44,153.4,9.78877688]
[1745585644826,0.14216157,153.41,153.4,9.78877688]
[1745585645005,2.50796345,153.41,153.31,1.5358]
[1745585645514,0.14216157,153.39,153.31,1.5358]
[1745585645721,4.73160013,153.4,153.31,1.5358]
[1745585646016,7.09740201,153.39,153.31,1.5358]
[1745585646520,26.0,153.36,153.27,1.6058]
[1745585646815,26.0,153.36,153.25,6.52488817]
[1745585646816,26.0,153.32,153.24,2.90997621]
[1745585646994,16.94,153.35,153.24,1.6058]
[1745585647193,26.0,153.34,153.24,1.6058]
[1745585647417,26.0,153.32,153.24,6.52570158]
[1745585647616,26.0,153.32,153.25,7.972]
[1745585648399,32.52257718,153.32,153.27,0.03]
[1745585648593,4.73160013,153.31,153.27,0.03]
[1745585649740,16.94,153.35,153.27,0.03]
[1745585649900,9.81492878,153.36,153.22,18.64964886]
[1745585650094,1.30459786,153.35,153.23,1.30443546]
[1745585650294,19.62985757,153.29,153.23,1.30443546]
[1745585650497,19.62985757,153.29,151.94,240.75254068]
[1745585650498,1.30459786,153.28,153.15,10.06197885]
[1745585650707,1.30459786,153.28,153.15,17.88]
[1745585651006,1.30459786,153.28,153.16,0.653206]
[1745585651206,26.0,153.29,153.16,16.97498894]
[1745585651422,1.63114126,153.28,153.16,16.97498894]
[1745585651607,9.83997081,153.3,153.19,26.0]
[1745585651800,9.83997081,153.3,153.2,1.6522082]
[1745585652002,39.25971514,153.31,153.2,1.6522082]
[1745585652201,39.25971514,153.31,153.21,22.84446183]
[1745585652500,39.25971514,153.31,153.22,0.65210004]
[1745585652929,39.25971514,153.31,153.23,1.6422]
[1745585653119,39.25971514,153.31,153.24,0.65207721]
[1745585653434,2.60814184,153.31,153.27,1.0]
[1745585653745,17.9,153.44,153.31,5.2856]
[1745585653746,39.68448954,153.42,153.31,5.2856]
[1745585654031,39.68448954,153.42,153.32,19.54983378]
[1745585654240,9.83997081,153.42,153.34,22.82509455]
[1745585654530,9.83997081,153.42,153.35,0.6492243]
[1745585655532,1.62972627,153.41,153.33,6.52180759]
[1745585655836,1.62965728,153.48,153.34,0.65016774]
[1745585656035,26.0,153.46,153.34,0.65016774]
[1745585656202,27.62945178,153.45,153.35,6.52103032]
[1745585656401,1.62945178,153.45,153.35,6.52103032]
[1745585657533,8.14634387,153.45,153.32,17.9]
[1745585657834,0.14216157,153.44,153.32,24.42222862]
[1745585658016,26.0,153.42,153.32,24.42222862]
[1745585658226,26.0,153.4,153.32,24.42222862]
[1745585658723,1.62998569,153.39,153.31,12.45886649]
[1745585658925,26.0,153.4,153.31,12.45886649]
[1745585659223,17.88,153.43,153.31,28.76569579]
[1745585659429,17.88,153.43,153.32,19.64964886]
[1745585659627,1.62946284,153.48,153.33,1.64964088]
[1745585659930,21.01589256,153.49,153.36,0.14216157]
[1745585660132,203.44,153.51,153.39,6.6611]
[1745585660430,10.43822325,153.52,153.4,23.46425512]
[1745585660613,10.43822325,153.52,153.41,17.88]
[1745585660814,1.6286718,153.51,153.42,0.64805879]
[1745585661134,10.43822325,153.52,153.42,0.64805879]
[1745585661496,1.5172,153.54,153.43,18.64964886]
[1745585661697,1.5172,153.54,153.44,0.64750526]
[1745585662434,3.23315426,153.58,153.45,6.51678071]
[1745585662635,1.6280052,153.57,153.46,0.64672559]
[1745585663410,1.6280052,153.57,153.45,22.80873248]
[1745585663730,1.6048,153.58,153.46,0.64741158]
[1745585664228,1.62808661,153.57,153.45,23.4556209]
[1745585664534,27.62808661,153.57,153.45,23.4556209]
[1745585664738,1.6048,153.58,153.47,6.5233]
[1745585664935,1.6048,153.58,153.48,0.64675304]
[1745585665100,27.6048,153.58,153.48,0.64675304]
[1745585665414,1.6048,153.58,153.48,37.1764019]
[1745585666411,1.6048,153.58,153.49,22.80278844]
[1745585666618,1.6048,153.58,153.5,0.64635137]
[1745585667312,0.063,153.58,153.5,0.64635137]
[1745585668029,0.063,153.58,153.47,6.5233]
[1745585668209,26.063,153.58,153.47,6.51579224]
[1745585668404,1.62845101,153.57,153.44,6.51720542]
[1745585668611,26.063,153.58,153.45,0.64752072]
[1745585668612,0.063,153.58,153.45,0.64752072]
[1745585668830,0.063,153.58,153.46,1.14216157]
[1745585669134,0.063,153.58,153.47,0.64655563]
[1745585669429,0.063,153.58,153.48,36.52964886]
[1745585669740,0.063,153.58,153.49,0.64630389]
[1745585670548,0.063,153.58,153.5,6.51465798]
[1745585670845,0.063,153.58,153.51,0.64632444]
[1745585672839,0.063,153.58,153.52,22.79833245]
[1745585673046,0.063,153.58,153.53,0.64573372]
[1745585674048,0.063,153.58,153.54,18.64964886]
[1745585674234,0.063,153.58,153.55,18.52487077]
[1745585674760,0.063,153.58,153.57,6.51168848]
[1745585674958,0.063,153.58,153.55,16.92608889]
[1745585674959,0.063,153.58,153.55,7.1571383]
[1745585675249,0.063,153.58,153.52,6.51380927]
[1745585675761,0.063,153.58,153.53,0.64611984]
[1745585677038,0.063,153.58,153.51,12.57130547]
[1745585677556,0.063,153.58,153.52,0.64641141]
[1745585678418,0.063,153.58,153.53,18.64964886]
[1745585678638,0.063,153.58,153.56,6.51211252]
[1745585678945,0.063,153.58,153.57,0.64455631]
[1745585680352,0.063,153.58,153.57,19.29420517]
[1745585680353,1e-08,153.58,153.57,19.29420517]
[1745585680542,1e-08,153.58,153.57,0.64455631]
[1745585680728,1e-08,153.58,153.53,6.513385]
[1745585680920,1e-08,153.58,153.51,19.32]
[1745585681337,27.58290001,153.58,153.51,19.32]
[1745585682432,27.58290001,153.58,153.51,25.83408242]
[1745585682827,27.58290001,153.58,153.51,19.32]
[1745585683038,27.58290001,153.58,153.51,25.83417166]
[1745585684145,1.58290001,153.58,153.52,0.64626315]
[1745585684450,1.58290001,153.58,153.51,19.32]
[1745585684654,1.58290001,153.58,153.51,25.83420947]
[1745585685545,27.58290001,153.58,153.51,25.83420947]
[1745585688031,27.58290001,153.58,153.51,19.32]
[1745585688688,27.58290001,153.58,153.51,25.83414965]
[1745585688952,27.58290001,153.58,153.51,6.51414965]
[1745585690750,27.58290001,153.58,153.49,6.51508241]
[1745585691049,27.58290001,153.58,153.5,0.6465671]